bitfinex/quotes_ETHUSD_20250626
["timestamp","ask_amount","ask_price","bid_price","bid_amount"]
[1750938285114,0.204,2444.3,2444.1,4.09138916]
[1750938285985,0.204,2444.3,2444.2,4.09131822]
[1750938289217,0.204,2444.3,2443.9,4.09173708]
[1750938289719,1.772,2444.3,2443.7,4.09201088]
[1750938289922,0.204,2444.0,2443.7,4.09201088]
[1750938290079,0.204,2444.0,2443.6,0.204]
[1750938290080,0.204,2444.0,2443.6,4.29624839]
[1750938290809,11.9696,2444.2,2443.6,4.09229626]
[1750938291109,0.204,2443.9,2443.6,4.09229626]
[1750938291610,0.204,2443.9,2443.5,4.0923958]
[1750938291611,0.204,2443.9,2443.5,4.09241845]
[1750938291813,10.0,2443.8,2442.6,4.96436]
[1750938292113,0.204,2443.6,2443.5,4.09247615]
[1750938292476,0.204,2443.6,2443.4,4.09258356]
[1750938292672,0.204,2443.6,2443.3,4.09276479]
[1750938292879,0.8276,2443.9,2443.1,4.09312291]
[1750938293078,0.9758,2443.4,2443.0,4.0932334]
[1750938293881,0.9758,2443.4,2442.9,1.026]
[1750938294217,0.204,2443.4,2443.2,4.09290517]
[1750938294589,0.204,2443.4,2443.3,4.09282527]
[1750938294914,0.8024,2443.7,2443.3,4.09282527]
[1750938295208,0.204,2443.6,2443.4,4.09264251]
[1750938295412,0.7627,2444.0,2443.5,4.09249028]
[1750938295598,0.7627,2444.0,2443.4,4.2965835]
[1750938295599,0.204,2443.8,2443.4,4.2965835]
[1750938296507,0.204,2443.8,2443.4,0.204]
[1750938296894,0.204,2443.8,2443.0,4.09330663]
[1750938296895,0.7627,2444.0,2443.0,4.0932938]
[1750938297097,0.204,2443.7,2443.5,4.09241214]
[1750938297520,0.204,2443.7,2443.4,4.0925873]
[1750938297706,0.204,2443.7,2443.3,4.09274109]
[1750938298031,0.204,2443.5,2443.1,4.09315885]
[1750938299606,0.204,2443.5,2443.2,4.09293717]
[1750938300326,0.204,2443.5,2443.1,4.09306659]
[1750938301025,0.204,2443.5,2443.0,4.29726126]
[1750938301026,0.813,2443.5,2443.0,4.09321535]
[1750938301195,0.204,2443.3,2443.1,4.09312963]
[1750938302314,0.204,2443.3,2443.2,4.09299279]
[1750938302913,0.7983,2443.7,2443.2,4.09299279]
[1750938303123,0.204,2443.4,2443.1,4.0930929]
[1750938303523,0.204,2443.4,2443.2,4.09291101]
[1750938303829,21.14289729,2444.3,2443.2,4.09291101]
[1750938303830,0.7771,2444.2,2443.2,0.7963]
[1750938304006,0.7771,2444.2,2443.5,4.09247238]
[1750938304199,0.7771,2444.2,2443.6,6.825]
[1750938304398,0.7771,2444.2,2443.5,4.09247238]
[1750938304835,0.7771,2444.2,2443.4,10.91653135]
[1750938305134,0.7771,2444.2,2443.5,4.0924793]
[1750938306242,0.8231,2444.1,2443.2,4.09287574]
[1750938306417,1.90541,2444.0,2443.3,10.91581107]
[1750938306619,1.90541,2444.0,2443.4,4.09263642]
[1750938307839,1.90541,2444.0,2443.3,10.91568035]
[1750938308028,1.90541,2444.0,2443.3,4.09268035]
[1750938308537,0.8231,2444.0,2443.3,4.09268035]
[1750938308773,10.8231,2444.0,2443.2,8.635]
[1750938308908,0.7936,2443.5,2443.2,4.09296772]
[1750938309107,0.7936,2443.5,2442.7,4.09383059]
[1750938309438,0.7936,2443.5,2442.7,4.09373876]
[1750938309638,2.46377656,2443.5,2442.7,4.09373876]
[1750938309937,2.46377656,2443.5,2442.8,4.09358566]
[1750938310113,10.7801,2443.4,2442.5,6.74133777]
[1750938310309,0.7801,2443.3,2442.9,4.0934814]
[1750938310504,0.7801,2443.3,2443.0,4.09325722]
[1750938310905,0.7801,2443.3,2443.1,4.09315349]
[1750938311103,0.7801,2443.6,2443.1,4.09301053]
[1750938311345,0.7801,2443.6,2443.0,4.09322622]
[1750938311841,0.7801,2443.6,2443.1,4.0931479]
[1750938312208,0.7801,2443.6,2443.0,4.09323672]
[1750938312411,0.7801,2443.6,2443.0,4.09332787]
[1750938312630,0.7801,2443.6,2443.2,4.09295871]
[1750938312963,0.7801,2443.6,2442.9,0.7938]
[1750938313164,1.74818888,2444.5,2443.4,0.7938]
[1750938313165,0.7801,2444.1,2443.4,0.7938]
[1750938313330,0.7801,2444.1,2443.6,4.09225937]
[1750938313771,0.204,2443.9,2443.6,4.09225937]
[1750938313968,0.204,2443.9,2443.7,4.09215262]
[1750938314262,0.204,2443.9,2443.7,4.09206776]
[1750938314861,0.204,2443.9,2443.5,4.09242326]
[1750938315052,0.204,2443.9,2443.6,4.09224034]
[1750938315363,0.204,2443.9,2443.7,4.09212033]
[1750938315678,0.204,2443.9,2443.8,4.50119991]
[1750938317049,0.8331,2444.1,2443.2,0.8305]
[1750938317252,0.8331,2444.1,2443.6,4.09219785]
[1750938317434,0.8331,2444.1,2443.4,4.09255125]
[1750938317435,10.8331,2444.1,2443.4,4.09255125]
[1750938317632,0.8331,2444.1,2443.7,4.09199223]
[1750938317828,0.8331,2444.1,2443.3,4.09273088]
[1750938318054,0.8331,2444.1,2443.8,4.09198313]
[1750938318835,0.8331,2444.1,2443.9,4.09180073]
[1750938319434,0.8331,2444.1,2443.9,4.09174023]
[1750938319763,0.7981,2444.4,2443.9,4.09174023]
[1750938320166,0.7981,2444.4,2443.7,4.09209584]
[1750938320167,0.97265204,2444.5,2444.1,4.09141258]
[1750938320371,1.77323588,2445.0,2444.4,4.09087722]
[1750938320576,0.97333588,2444.9,2444.5,4.09066165]
[1750938320868,9.626,2445.2,2444.9,4.09014683]
[1750938320869,0.97333588,2445.1,2444.9,4.09014683]
[1750938321068,0.97333588,2445.2,2444.9,4.09014683]
[1750938321273,0.97333588,2445.5,2444.9,0.49232309]
[1750938321575,0.784,2445.7,2444.6,6.73230544]
[1750938321576,0.97333588,2445.6,2445.0,4.08988081]
[1750938321783,1.75733588,2445.7,2445.1,4.08978767]
[1750938322066,1.75733588,2445.7,2445.2,4.08963578]
[1750938322267,0.784,2445.7,2445.1,4.08973524]
[1750938322478,3.12303359,2445.7,2444.9,4.09005444]
[1750938322770,0.8088,2445.6,2444.6,2.6418]
[1750938322976,0.8088,2445.5,2444.7,4.09037016]
[1750938323850,0.8088,2445.5,2444.8,4.09028298]
[1750938324452,0.8088,2445.5,2444.9,4.09006397]
[1750938324667,2.22091695,2445.5,2444.9,4.09006397]
[1750938324971,2.22091695,2445.5,2444.8,4.09023855]
[1750938325554,2.22091695,2445.5,2444.7,4.09039871]
[1750938325756,2.22091695,2445.5,2444.8,4.09030076]
[1750938326262,2.22091695,2445.5,2444.9,4.09013247]
[1750938326471,2.22091695,2445.5,2444.8,4.09022861]
[1750938326680,2.22091695,2445.5,2444.7,4.0903906]
[1750938326847,2.22091695,2445.5,2444.8,4.09023735]
[1750938327047,0.204,2445.0,2444.9,4.09014098]
[1750938327274,0.204,2445.0,2444.7,4.49942966]
[1750938327275,0.204,2445.0,2444.7,0.40903906]
[1750938327447,0.204,2445.0,2444.8,4.09031359]
[1750938328079,0.204,2445.0,2444.7,4.49944124]
[1750938328290,0.204,2445.0,2444.8,4.09030987]
[1750938328450,0.204,2445.0,2444.8,4.67189723]
[1750938329177,0.9716,2445.0,2444.5,0.204]
[1750938329479,0.204,2444.9,2444.8,4.09023554]
[1750938330076,0.204,2444.9,2444.7,4.09040432]
[1750938330287,0.7676,2445.0,2444.3,1.816]
[1750938330473,0.204,2444.8,2444.4,4.09091187]
[1750938330862,0.204,2444.8,2444.5,4.09079664]
[1750938331453,0.204,2444.8,2444.3,0.204]
[1750938331974,0.204,2444.8,2444.3,4.29505461]
[1750938332176,10.0,2445.2,2444.2,4.09123981]
[1750938332177,0.7787,2445.1,2444.2,4.09123981]
[1750938332359,0.204,2444.4,2444.3,4.09115084]
[1750938332559,0.204,2444.6,2444.5,4.09081611]
[1750938332784,0.204,2444.6,2444.2,0.204]
[1750938332985,0.7532,2445.1,2444.5,4.09081611]
[1750938333164,0.204,2444.8,2444.7,4.09039962]
[1750938333565,0.7532,2445.1,2444.7,4.09046829]
[1750938333566,0.204,2445.0,2444.7,4.09046829]
[1750938333776,0.204,2445.0,2444.8,4.09029266]
[1750938333970,0.204,2445.0,2444.6,4.09057049]
[1750938334157,0.204,2445.0,2444.7,4.09038282]
[1750938334598,0.204,2445.0,2444.7,4.09048144]
[1750938334759,0.204,2445.0,2444.7,4.09039931]
[1750938335775,0.204,2445.0,2444.8,4.09026816]
[1750938335975,0.204,2445.0,2444.7,4.09036256]
[1750938336804,0.204,2445.0,2444.8,4.09030148]
[1750938337163,0.204,2445.0,2444.9,4.09014683]
[1750938338371,0.8216,2445.3,2444.5,5.9057602]
[1750938338687,0.204,2445.2,2445.1,4.08971986]
[1750938339192,0.204,2445.2,2445.0,4.08988374]
[1750938339562,0.204,2445.2,2445.1,4.08981227]
[1750938340898,0.204,2445.2,2445.1,4.85751227]
[1750938341395,0.204,2445.5,2445.4,4.08916753]
[1750938341890,0.204,2445.5,2445.0,0.204]
[1750938342094,0.7532,2445.6,2445.3,4.08937842]
[1750938342259,0.7532,2445.6,2445.2,4.08955039]
[1750938342455,0.7532,2445.6,2444.9,0.7692]
[1750938342696,0.7532,2445.6,2445.2,4.08950119]
[1750938343292,0.7532,2445.6,2444.7,12.6357]
[1750938343603,0.7532,2445.6,2445.0,4.08994295]
[1750938345411,0.7532,2445.6,2444.9,4.09004807]
[1750938346343,0.7532,2445.6,2444.8,4.09022348]
[1750938346461,0.7532,2445.6,2444.7,5.90441085]
[1750938346665,0.7978,2445.5,2444.8,4.09024796]
[1750938346902,0.7978,2445.5,2444.9,4.09002795]
[1750938348903,0.7978,2445.5,2445.0,4.08996004]
[1750938349806,0.7978,2445.5,2444.9,4.0900524]
[1750938350580,0.7978,2445.5,2445.0,4.08996809]
[1750938351498,0.7978,2445.5,2444.6,5.90462167]
[1750938351499,0.7978,2445.5,2444.7,0.771]
[1750938351700,0.7502,2445.9,2445.2,0.771]
[1750938351901,0.8137,2446.4,2445.8,0.7656]
[1750938352203,3.429972,2447.0,2445.8,0.7656]
[1750938352204,0.97489476,2446.7,2446.6,4.08730483]
[1750938352389,0.8137,2446.9,2446.6,4.08722213]
[1750938352562,0.8137,2446.9,2446.3,0.7656]
[1750938352563,0.204,2446.7,2446.3,0.7656]
[1750938352765,0.97489476,2446.6,2446.3,4.08771939]
[1750938352975,0.97489476,2446.6,2446.1,1.814]
[1750938353189,0.204,2446.5,2446.4,4.08756267]
[1750938353689,0.204,2446.5,2446.3,4.08773472]
[1750938353892,0.204,2446.5,2446.4,4.08763897]
[1750938355298,0.204,2446.7,2446.6,4.08727287]
[1750938356208,0.7505,2447.1,2446.6,1.814]
[1750938356375,0.204,2447.0,2446.9,4.08680371]
[1750938358385,0.204,2447.0,2446.8,4.08688322]
[1750938359214,0.204,2447.0,2446.9,4.08680371]
[1750938360318,0.204,2447.0,2446.8,4.08687017]
[1750938360493,0.204,2447.0,2446.5,0.204]
[1750938360818,0.8092,2446.5,2445.8,1.814]
[1750938360982,0.8092,2446.5,2445.1,9.808]
[1750938360983,1.91052,2446.5,2446.0,4.08828282]
[1750938361184,0.204,2446.0,2445.9,4.08840976]
[1750938361386,0.204,2446.0,2445.8,4.08857783]
[1750938361584,0.204,2446.0,2445.9,4.08847459]
[1750938362908,1.91052,2446.5,2446.0,4.08821106]
[1750938363114,0.204,2446.2,2446.0,4.08821106]
[1750938364527,0.204,2446.2,2446.1,4.0881403]
[1750938364690,0.8092,2446.5,2446.1,4.08806443]
[1750938364889,0.204,2446.3,2446.2,4.08797318]
[1750938366321,0.204,2446.5,2446.4,4.08763897]
[1750938367032,0.204,2446.5,2446.1,0.204]
[1750938367195,0.7619,2446.8,2446.2,4.08789834]
[1750938367396,0.204,2446.3,2446.2,4.08789834]
[1750938368328,0.9766,2446.3,2446.0,5.92819299]
[1750938368504,0.204,2446.1,2446.0,5.92819299]
[1750938369242,0.204,2446.1,2445.9,6.858]
[1750938369243,0.204,2446.1,2445.9,1.84]
[1750938369446,0.204,2446.1,2445.9,5.92846004]
[1750938372544,0.204,2446.1,2446.0,4.08830744]
[1750938372748,0.204,2446.1,2445.9,5.92835948]
[1750938373425,0.204,2446.1,2446.0,4.08830744]
[1750938374025,0.204,2446.1,2445.9,5.92837473]
[1750938374226,0.204,2446.1,2446.0,4.08830744]
[1750938374740,0.204,2446.1,2445.9,5.92837546]
[1750938375645,0.204,2446.1,2445.6,0.204]
[1750938375848,0.7535,2446.7,2445.4,4.08931054]
[1750938376023,0.7535,2446.1,2445.8,4.08856194]
[1750938376227,0.204,2445.9,2445.8,4.08856194]
[1750938376752,0.204,2445.9,2445.8,4.08864175]
[1750938382820,0.204,2445.9,2445.7,4.08872492]
[1750938383252,0.204,2445.9,2445.8,4.08864175]
[1750938384156,0.204,2445.9,2445.6,4.08890317]
[1750938384157,0.204,2445.9,2445.6,4.08889704]
[1750938384325,0.204,2445.9,2445.7,4.08872868]
[1750938384525,0.204,2445.9,2445.8,4.08864175]
[1750938384751,0.204,2445.9,2445.7,4.08872035]
[1750938385559,0.204,2445.9,2445.8,4.08864175]
[1750938387155,0.97169295,2446.5,2445.9,4.08847459]
[1750938387322,0.7721,2446.7,2446.3,4.08769662]
[1750938387828,1.74379295,2446.7,2446.2,4.08796832]
[1750938388149,0.55,2446.6,2446.2,4.08796832]
[1750938388551,0.97169295,2446.7,2446.3,6.84]
[1750938388766,0.7887,2446.7,2446.5,4.08739545]
[1750938388919,0.7887,2446.7,2446.6,4.08730483]
[1750938388920,1.3387,2446.7,2446.6,4.08730483]
[1750938389125,0.7887,2446.7,2446.6,4.08730483]
[1750938389747,0.7887,2446.7,2446.5,4.08737702]
[1750938390258,0.7887,2446.7,2446.6,4.08730483]
[1750938390450,1.3387,2446.7,2446.6,4.08730483]
[1750938391928,1.3387,2446.7,2446.5,4.08738368]
[1750938392330,1.3387,2446.7,2446.6,4.08730483]
[1750938392964,1.3387,2446.7,2446.5,4.08738431]
[1750938393557,1.3387,2446.7,2446.6,4.08730483]
[1750938393736,1.3387,2446.7,2446.5,4.08736766]
[1750938393938,1.3387,2446.7,2446.3,4.08772783]
[1750938393939,0.55,2446.6,2446.3,4.08772783]
[1750938394143,0.55,2446.6,2446.2,10.93087569]
[1750938394346,0.55,2446.6,2446.2,6.843]
[1750938394547,0.55,2446.6,2446.1,4.08805453]
[1750938394859,0.55,2446.6,2446.0,4.08817235]
[1750938395040,7.7650259,2446.4,2446.0,4.08823293]
[1750938396389,7.7650259,2446.4,2445.9,10.9284622]
[1750938396571,9.6050259,2446.4,2445.8,6.84]
[1750938396948,9.6050259,2446.4,2445.9,4.08840205]
[1750938397176,0.204,2445.9,2445.8,4.08854843]
[1750938399983,0.204,2445.9,2445.7,4.08872147]
[1750938400195,0.7508,2446.6,2446.0,4.08825062]
[1750938400491,0.204,2446.1,2446.0,4.08825062]
[1750938410311,0.204,2446.1,2445.9,4.08840088]
[1750938410609,0.204,2446.1,2445.8,11.73287199]
[1750938410610,0.204,2445.9,2445.8,6.818]
[1750938410796,0.204,2445.9,2445.7,4.08873503]
[1750938410994,0.204,2445.8,2445.7,4.08873503]
[1750938415618,0.204,2445.8,2445.3,1.0316]
[1750938415824,0.204,2445.5,2445.4,6.81]
[1750938416021,0.204,2445.5,2445.4,10.89930459]
[1750938418331,0.204,2445.5,2445.4,10.89730459]
[1750938419121,0.204,2445.5,2445.1,0.8264]
[1750938419299,0.204,2445.5,2445.2,10.89262166]
[1750938419503,0.204,2445.3,2445.2,4.08963134]
[1750938422830,1.824,2445.6,2445.4,4.08925131]
[1750938424131,1.824,2445.6,2445.3,10.88744857]
[1750938424132,1.824,2445.6,2445.3,10.88743064]
[1750938424300,1.824,2445.6,2445.4,4.08928034]
[1750938424500,1.824,2445.6,2445.2,4.0895407]
[1750938424730,0.55,2445.5,2444.9,0.7745]
[1750938424909,0.55,2445.5,2444.9,4.86459711]
[1750938425112,0.55,2445.5,2445.0,4.08984786]
[1750938425436,0.55,2445.5,2445.1,4.08980784]
[1750938426033,0.55,2445.5,2445.0,4.08987966]
[1750938426435,0.55,2445.5,2445.1,4.0896931]
[1750938426839,0.55,2445.5,2445.2,4.08962866]
[1750938427912,0.55,2445.5,2445.1,4.08971248]
[1750938428241,0.55,2445.5,2445.2,4.08963475]
[1750938429145,10.7557,2445.7,2445.0,6.794]
[1750938429352,12.374,2445.6,2445.3,4.08941182]
[1750938430352,2.346,2445.6,2445.4,4.08930211]
[1750938430652,2.346,2445.6,2445.3,4.08940006]
[1750938431567,0.55,2445.6,2445.3,4.08940006]
[1750938431743,2.346,2445.6,2445.3,4.08940006]
[1750938432668,2.346,2445.6,2445.2,4.08954982]
[1750938433031,0.204,2445.4,2445.3,4.08947777]
[1750938438176,0.8072,2446.0,2445.7,4.08878175]
[1750938438374,0.204,2445.7,2445.6,4.08894446]
[1750938442386,0.55,2446.2,2446.1,4.0881403]
[1750938442560,0.55,2446.3,2446.1,4.0881403]
[1750938442763,0.204,2446.1,2445.8,10.85856914]
[1750938443074,0.204,2446.0,2445.9,4.08840566]
[1750938444669,10.7659,2446.4,2446.3,4.08780607]
[1750938444870,0.7659,2446.4,2446.3,4.08780607]
[1750938445062,10.0,2446.7,2446.2,4.08797318]
[1750938445063,0.204,2446.3,2446.2,4.08797318]
[1750938445560,0.97264982,2446.7,2446.5,4.08732535]
[1750938445774,0.204,2446.6,2446.4,4.08754224]
[1750938445986,0.204,2446.6,2446.4,6.77]
[1750938446607,0.204,2446.6,2446.4,10.8575396]
[1750938447263,0.204,2446.6,2446.5,4.08747189]
[1750938450191,0.204,2446.6,2446.3,4.08771751]
[1750938450404,0.204,2446.6,2446.4,6.761]
[1750938450962,0.204,2446.6,2446.4,10.84862515]
[1750938451389,0.204,2446.6,2446.5,4.08747189]
[1750938451588,0.204,2446.6,2446.4,10.8485514]
[1750938452086,0.204,2446.6,2446.4,4.0875514]
[1750938452389,0.204,2446.6,2446.5,4.08747189]
[1750938453497,0.204,2446.6,2446.4,4.08754188]
[1750938453659,0.204,2446.6,2446.3,10.84873317]
[1750938454089,0.204,2446.6,2446.4,4.08760519]
[1750938454294,0.204,2446.6,2446.5,4.08747189]
[1750938454865,0.204,2446.6,2446.3,6.761]
[1750938455065,0.204,2446.6,2446.3,10.84869433]
[1750938455396,0.204,2446.6,2446.4,6.756]
[1750938456370,0.7733,2446.5,2446.1,0.204]
[1750938456569,0.204,2446.3,2446.1,6.75]
[1750938456804,0.204,2446.2,2446.1,6.75]
[1750938458470,0.204,2446.2,2445.8,4.08852077]
[1750938458676,0.7632,2446.1,2445.9,6.751]
[1750938458889,0.7632,2446.1,2445.9,10.83946741]
[1750938459100,0.7632,2446.1,2446.0,4.08830744]
[1750938459308,0.204,2446.2,2446.0,4.08830744]
[1750938460135,7.2150259,2446.6,2446.0,0.8269]
[1750938460136,0.8045,2446.6,2446.0,0.8269]
[1750938460288,0.204,2446.5,2446.4,4.0874829]
[1750938461183,12.5446,2446.8,2446.6,4.08725732]
[1750938461386,0.204,2446.7,2446.5,4.08737518]
[1750938461811,0.204,2446.7,2446.6,4.08730483]
[1750938462007,0.204,2446.7,2446.5,4.08737492]
[1750938465392,0.204,2446.7,2446.6,4.08730483]
[1750938466512,0.7868,2447.5,2447.2,4.08629182]
[1750938466714,0.7868,2447.5,2447.3,4.08604651]
[1750938467104,0.7868,2447.5,2447.0,7.5035]
[1750938467503,0.7868,2447.5,2447.3,4.08612341]
[1750938468226,0.97106561,2447.6,2447.4,4.08596878]
[1750938468432,2.6125,2447.7,2447.5,4.08571175]
[1750938468601,1.80356561,2447.7,2447.5,4.08571175]
[1750938468804,0.8325,2447.7,2447.5,4.08571175]
[1750938469627,0.8325,2447.7,2447.5,4.08579795]
[1750938470231,0.8325,2447.7,2447.6,4.0856349]
[1750938470616,0.55,2447.8,2447.6,4.0856349]
[1750938471926,2.6055,2448.1,2447.6,4.08563317]
[1750938472239,10.0,2448.0,2447.7,4.08539104]
[1750938473545,10.0,2448.0,2447.8,4.08528638]
[1750938474627,10.0,2448.0,2447.7,4.08536578]
[1750938474849,10.0,2448.0,2447.6,4.08561228]
[1750938475023,0.7724,2447.8,2447.4,10.83096171]
[1750938475430,0.7724,2447.8,2447.3,10.83204233]
[1750938476057,0.7724,2447.8,2447.5,4.08566597]
[1750938476549,0.7724,2447.8,2447.6,4.08562219]
[1750938476749,0.55,2447.9,2447.6,4.08562219]
[1750938477564,0.823,2448.0,2447.7,4.08542402]
[1750938477869,2.603,2448.0,2447.8,4.08529583]
[1750938478553,0.204,2447.8,2447.7,4.08536886]
[1750938478760,0.823,2448.0,2447.7,4.08536886]
[1750938478938,0.823,2448.0,2447.8,4.08528385]
[1750938479354,0.823,2448.0,2447.7,4.08538885]
[1750938479653,0.823,2448.0,2447.8,4.0852988]
[1750938480230,3.0931,2448.2,2447.8,4.0852988]
[1750938480626,3.0931,2448.2,2447.8,4.08521456]
[1750938480948,3.0931,2448.2,2447.7,4.08540576]
[1750938480949,0.204,2447.8,2447.7,4.08538753]
[1750938482977,2.5421,2448.2,2448.0,4.08483961]
[1750938483141,0.8247,2448.4,2447.6,7.5187]
[1750938483337,0.204,2448.2,2447.7,0.204]
[1750938483543,0.8247,2448.4,2448.0,4.08489621]
[1750938483544,10.8247,2448.4,2448.0,4.08489621]
[1750938483748,0.55,2448.3,2448.0,4.08489621]
[1750938483976,0.55,2448.1,2447.3,0.7682]
[1750938484143,0.204,2447.7,2447.5,4.08569322]
[1750938484473,0.204,2447.7,2447.6,4.0856349]
[1750938484673,1.3246,2448.2,2448.0,4.08496646]
[1750938484869,11.3246,2448.2,2447.9,4.08508395]
[1750938485175,0.204,2447.9,2447.8,4.08520834]
[1750938488244,10.7569,2448.4,2448.2,4.08458239]
[1750938488448,0.7569,2448.4,2448.2,4.08458239]
[1750938488873,0.7569,2448.4,2448.0,4.08486705]
[1750938488874,0.8056,2448.6,2447.8,4.08530108]
[1750938489089,0.204,2448.2,2448.1,4.08469964]
[1750938490277,0.204,2448.2,2448.0,4.08487378]
[1750938490589,0.204,2448.2,2448.1,4.08480045]
[1750938490792,0.204,2448.2,2448.0,4.08489845]
[1750938491398,0.204,2448.2,2448.1,4.08480045]
[1750938492884,0.204,2448.2,2448.1,4.86520045]
[1750938493058,0.8056,2448.6,2448.3,4.08440068]
[1750938493264,0.204,2448.4,2448.1,0.7804]
[1750938493461,0.204,2448.4,2448.2,4.0846336]
[1750938493664,0.204,2448.4,2448.3,4.57097013]
[1750938493906,0.55,2448.9,2448.4,4.08418089]
[1750938494164,0.204,2448.5,2448.4,4.08418089]
[1750938495818,0.795,2448.8,2448.3,4.57088609]
[1750938496029,0.795,2448.8,2448.5,4.08412294]
[1750938496511,0.55,2448.9,2448.6,4.08393444]
[1750938496697,0.55,2448.9,2448.5,4.0840022]
[1750938497312,0.55,2449.0,2448.5,7.23212306]
[1750938497503,0.55,2449.0,2448.7,4.08379751]
[1750938497704,0.55,2449.1,2448.7,4.08379751]
[1750938497903,0.55,2449.1,2448.6,4.08386539]
[1750938498100,0.55,2449.1,2448.7,4.08378654]
[1750938499990,0.7637,2449.2,2448.8,4.0835531]
[1750938500190,0.7637,2449.2,2448.5,7.23212306]
[1750938500484,0.7637,2449.2,2448.7,4.08377781]
[1750938501090,0.7637,2449.2,2448.8,4.08358728]
[1750938501928,0.7637,2449.2,2448.6,0.48650336]
[1750938501929,0.7637,2449.2,2448.6,4.57040001]
[1750938502234,0.7637,2449.2,2448.9,4.08332501]
[1750938502401,0.7637,2449.2,2449.0,4.08328143]
[1750938502718,0.7637,2449.2,2448.8,4.08354795]
[1750938502889,0.7637,2449.2,2448.9,4.08339793]
[1750938503084,0.7637,2449.2,2448.8,4.08353431]
[1750938503295,1.76384213,2449.4,2449.0,4.08329291]
[1750938503493,0.792,2449.4,2449.0,4.08329291]
[1750938503699,0.55,2449.3,2449.0,4.08329291]
[1750938503896,0.55,2449.3,2449.0,4.08320278]
[1750938504512,0.55,2449.3,2448.9,4.08338255]
[1750938504695,0.55,2449.3,2448.9,4.08342131]
[1750938504900,0.55,2449.3,2449.0,4.08329624]
[1750938505100,0.55,2449.3,2449.1,4.08312158]
[1750938505295,0.792,2449.4,2448.8,1.32712306]
[1750938505497,0.792,2449.4,2449.2,4.08296557]
[1750938506527,0.55,2449.4,2449.2,4.08287814]
[1750938507228,0.204,2449.3,2449.2,4.08285629]
[1750938507594,10.0,2449.7,2449.5,4.08241607]
[1750938507800,0.204,2449.5,2449.4,4.08251528]
[1750938508321,0.204,2449.5,2449.4,4.58663834]
[1750938508510,0.204,2449.6,2449.4,4.58667377]
[1750938509026,0.204,2449.4,2449.3,4.08268429]
[1750938509803,0.204,2449.4,2449.3,4.90788429]
[1750938510320,1.373,2449.9,2449.6,4.08217501]
[1750938510834,0.96984328,2450.0,2449.3,0.8252]
[1750938511003,7.2150259,2450.0,2449.4,12.57363248]
[1750938511210,0.204,2449.6,2449.5,4.08238011]
[1750938512127,0.204,2449.6,2449.5,4.0824658]
[1750938513203,0.7995,2450.1,2449.7,4.08204049]
[1750938513204,0.204,2449.9,2449.7,4.08204049]
[1750938513598,0.204,2449.9,2449.8,4.08196587]
[1750938513923,0.7995,2450.1,2449.5,6.725]
[1750938513924,10.55,2450.0,2449.5,6.725]
[1750938514126,0.204,2449.7,2449.5,6.725]
[1750938514321,0.204,2449.7,2449.6,4.08220199]
[1750938514724,0.204,2449.7,2449.6,5.07282841]
[1750938514917,0.204,2449.7,2449.6,4.08220199]
[1750938515636,0.204,2449.7,2449.6,4.89060199]
[1750938515935,0.9897139,2450.6,2449.9,0.8204]
[1750938516132,0.204,2450.4,2450.2,4.0811655]
[1750938516332,0.204,2450.4,2450.3,4.08113292]
[1750938517310,0.2216139,2450.6,2450.5,4.08079983]
[1750938518608,0.2216139,2450.6,2450.4,4.08089262]
[1750938518808,0.2216139,2450.6,2450.4,4.08088306]
[1750938519218,0.2216139,2450.6,2450.4,10.80388306]
[1750938519425,0.204,2450.5,2450.4,10.80388306]
[1750938519819,0.8141,2450.4,2450.1,6.723]
[1750938520024,8.0291259,2450.4,2450.1,6.723]
[1750938520220,0.204,2450.1,2450.0,6.723]
[1750938520718,0.204,2450.1,2450.0,10.80463265]
[1750938520917,0.204,2450.1,2450.0,6.723]
[1750938521628,0.204,2450.1,2450.0,10.80463265]
[1750938522021,0.204,2450.1,2450.0,11.57373265]
[1750938522239,1.5432139,2450.6,2450.0,11.57373265]
[1750938522240,0.2216139,2450.6,2450.4,4.08092133]
[1750938522431,0.2216139,2450.6,2450.5,10.80279983]
[1750938527648,0.2216139,2450.6,2450.5,4.08079983]
[1750938527961,0.2216139,2450.6,2450.5,12.56479983]
[1750938528657,0.2216139,2450.6,2450.5,13.36149983]
[1750938528821,0.9569,2450.5,2450.1,4.08138015]
[1750938529026,0.204,2450.4,2450.0,4.08155732]
[1750938529274,0.204,2450.2,2449.9,4.08170634]
[1750938529475,0.55,2449.9,2449.2,4.08296586]
[1750938529783,0.55,2449.9,2449.1,0.7967]
[1750938529784,0.55,2449.7,2449.3,4.57074498]
[1750938530091,0.55,2449.7,2448.8,0.7967]
[1750938530272,10.0,2449.9,2448.8,0.7967]
[1750938530273,0.55,2449.5,2448.9,4.08338971]
[1750938530639,0.55,2449.5,2449.0,6.765]
[1750938530989,0.55,2449.5,2449.0,10.84820025]
[1750938531276,0.55,2449.5,2449.2,4.08288911]
[1750938531439,0.7529,2449.6,2449.1,6.765]
[1750938531783,0.7529,2449.6,2449.3,4.08270573]
[1750938531956,0.7529,2449.6,2449.4,6.765]
[1750938532147,0.55,2449.8,2449.5,4.0824658]
[1750938532476,0.55,2449.8,2449.6,4.08220836]
[1750938532656,0.7529,2449.9,2449.5,4.08239827]
[1750938532860,0.7529,2449.9,2449.6,4.08221085]
[1750938535374,0.7529,2449.9,2449.5,4.0823873]
[1750938535686,0.7529,2449.9,2449.5,4.08244389]
[1750938537485,0.7529,2449.9,2449.5,10.84544389]
[1750938538880,0.7529,2449.9,2449.5,6.763]
[1750938539560,0.204,2449.6,2449.5,6.763]
[1750938539965,0.204,2449.6,2449.5,10.8454658]